[Event "CCT Airthings Masters Play-In 2023"]
[Site "Online"]
[Date "2023.02.03"]
[Round "3"]
[White "Vidit, Santosh Gujrathi"]
[Black "BogdanDeac"]
[Result "0-1"]
[ECO "C42"]
[WhiteElo "2730"]
[BlackElo "2532"]
[Annotator "TA"]
[PlyCount "88"]
[EventDate "2023.02.03"]
[EventType "swiss"]
[EventCountry "NET"]
[SourceTitle "playchess.com"]
[Source "ChessBase"]
[SourceQuality "1"]
[TimeControl "600+2"]

{[%evp 21,87,12,17,14,23,18,14,13,19,19,20,13,14,12,25,8,19,14,13,18,21,9,21,5,11,2,7,8,19,13,18,0,8,0,5,1,52,43,47,7,52,45,57,0,0,0,0,0,50,50,57,63,60,45,163,69,971,956,912,908,722,65,65,65,79,79,29992,-29994]} 1. e4 {[%emt 0:00:03]} e5 {[%emt 0:00:07]} 2. Nf3 {[%emt 0:00:01]} Nf6 {[%emt 0:00:02]} 3. Nxe5 {[%emt 0:00:20]} d6 {[%emt 0:00:01]} 4. Nf3 {[%emt 0:00:13]} Nxe4 {[%emt 0:00:02]} 5. d4 {[%emt 0:00:04]} d5 {[%emt 0:00:03]} 6. Bd3 {[%emt 0:00:01]} Bd6 {[%emt 0:00:42]} 7. O-O {[%emt 0:00:02]} O-O {[%emt 0:00:01]} 8. c4 {[%emt 0:00:01]} c6 {[%emt 0:00:00]} 9. Nc3 {[%emt 0:01:43]} Nxc3 {[%emt 0:00:04]} 10. bxc3 {[%emt 0:00:00]} dxc4 {[%emt 0:00:01]} 11. Bxc4 {[%emt 0:00:00]} Bf5 {[%emt 0:00:01]} 12. Bg5 {[%emt 0:00:23] 12.Bg5 is better than 12.Re1. C42: Petroff Defence: 3 Nxe5 and unusual White 3rd moves.} Qa5 {[%emt 0:00:03]} 13. Nh4 {[%emt 0:00:43]} Be6 {[%emt 0:00:04]} 14. Bxe6 {[%emt 0:00:02] Bf5 would be deadly. The position is equal.} Qxg5 {[%emt 0:00:00]} 15. Nf3 {[%emt 0:00:01]} Qa5 {[%emt 0:00:02]} 16. Bb3 {[%emt 0:00:04]} Nd7 {[%emt 0:00:04]} 17. Qd3 {[%emt 0:00:29]} Rae8 {[%emt 0:00:17]} 18. Rfe1 {[%emt 0:00:05]} Nf6 {[%emt 0:00:24]} 19. g3 {[%emt 0:00:09]} g6 {[%emt 0:00:04]} 20. Kg2 {[%emt 0:00:10]} Kg7 {[%emt 0:00:35]} 21. h4 {[%emt 0:00:01]} h6 {[%emt 0:00:45]} 22. Nd2 {[%emt 0:00:13][%cal Bf3d2,Bd2c4,Bc4e3,Be3d5,Bd5f4][%mdl 32] [#]} Qc7 $146 {[%emt 0:01:21]} ({Predecessor:} 22... Qd8 23. Qf3 Bc7 24. Rxe8 Qxe8 25. Rb1 Qe7 26. Bd1 Rb8 27. Qd3 h5 28. Bf3 c5 29. dxc5 Qxc5 30. Rxb7 {½-½ Ochsner,B (2491)-Papp,G (2589) DEN-chT 1920 58th 2019 (6.3)}) 23. Qf3 {[%emt 0:00:23]} c5 {[%emt 0:01:18]} 24. Nc4 {[%emt 0:01:14] With the idea Nxd6.} b5 {[%emt 0:01:30]} (24... Rxe1 {simplifies} 25. Rxe1 b5 26. Ne3 cxd4 27. cxd4 Bb4) 25. Ne3 {[%emt 0:00:09]} Qc8 {[%emt 0:02:29]} 26. Rab1 {[%emt 0:01:53]} a6 {[%emt 0:00:17]} 27. a4 {[%emt 0:00:18]} Qa8 {[%emt 0:00:18]} (27... Ne4 $5 {[%cal Re4d2]}) 28. Nd5 {[%emt 0:00:42]} Qd8 {[%emt 0:00:02]} (28... Re6 $1 $11) 29. axb5 {[%emt 0:00:06]} axb5 {[%emt 0:00:02]} 30. dxc5 {[%emt 0:00:19]} Bxc5 {[%emt 0:00:09]} 31. Rxe8 $1 {[%emt 0:00:10]} Rxe8 {[%emt 0:00:06]} 32. Rd1 {[%emt 0:00:02]} (32. Ba2 $1 $14) 32... Re5 $11 {[%emt 0:00:01]} (32... h5 {simplifies} 33. Rd3 Re5 34. Nxf6 Qxf6 35. Qxf6+ Kxf6 36. Rf3+ Rf5) 33. Nf4 {[%emt 0:00:36]} Qc7 {[%emt 0:00:04]} 34. Rd2 {[%emt 0:00:12]} Re7 {[%emt 0:00:04]} (34... h5 $11) 35. h5 $14 {[%emt 0:00:07] Threatens to win with hxg6.} g5 {[%emt 0:00:03]} 36. Nd5 {[%emt 0:00:04]} Nxd5 {[%emt 0:00:01]} 37. Rxd5 {[%emt 0:00:00]} b4 {[%emt 0:00:04]} ({Black should try} 37... Rd7 $14) 38. Qd3 {[%emt 0:00:08]} (38. Qf5 $1 $18 Bd6 39. Bc2) 38... Bb6 $2 {[%emt 0:00:03][%mdl 8192]} (38... Re5 $14) 39. Bc2 $18 {[%emt 0:00:05] Intending Qh7+ and mate.} (39. cxb4 Qc6 40. b5 Qb7 $18) 39... Re6 {[%emt 0:00:02] [#]} 40. Qh7+ $1 {[%emt 0:00:01]} ({Not} 40. cxb4 Kf8 $16) 40... Kf8 {[%emt 0:00:01]} 41. cxb4 $2 {[%emt 0:00:03]} (41. Rf5 $18 f6 42. Qh8+ Ke7 43. Ba4) 41... Qc6 $14 {[%emt 0:00:03]} 42. Be4 {[%emt 0:00:02][%cal Od5d8] Black must now prevent Rd8+!} Qc4 {[%emt 0:00:01]} 43. Bf3 {[%emt 0:00:04] Rd7 would kill now.} g4 $2 {[%emt 0:00:01][%mdl 8192] [#]} (43... Qc3 $16) 44. Bd1 $4 {[%emt 0:00:01][%mdl 8192]} Qxd5+ {[%emt 0:00:01] Weighted Error Value: White=0.48/Black=0.26 (precise)} 0-1

[Event "CCT Airthings Masters Play-In 2023"]
[Site "Online"]
[Date "2023.02.03"]
[Round "3"]
[White "FabianoCaruana"]
[Black "igorkovalenko"]
[Result "1-0"]
[ECO "C18"]
[WhiteElo "2713"]
[BlackElo "2582"]
[Annotator "TA"]
[PlyCount "71"]
[EventDate "2023.02.03"]
[EventType "swiss"]
[EventCountry "NET"]
[SourceTitle "playchess.com"]
[Source "ChessBase"]
[SourceQuality "1"]
[TimeControl "600+2"]

{[%evp 16,71,36,4,27,25,57,55,58,37,39,32,35,27,29,0,12,10,54,54,54,31,30,17,47,2,39,38,93,77,87,60,129,133,131,140,142,119,306,247,400,400,422,271,290,268,641,487,600,612,588,591,598,581,649,552,540,543]} 1. e4 {[%emt 0:00:03]} e6 {[%emt 0:00:06]} 2. d4 {[%emt 0:00:02]} d5 {[%emt 0:00:00]} 3. Nc3 {[%emt 0:00:01]} Bb4 {[%emt 0:00:01]} 4. e5 {[%emt 0:00:03]} c5 {[%emt 0:00:01]} 5. a3 {[%emt 0:00:00]} Bxc3+ {[%emt 0:00:01]} 6. bxc3 {[%emt 0:00:00]} Qa5 {[%emt 0:00:00]} 7. Bd2 {[%emt 0:00:02]} Qa4 {[%emt 0:00:01]} 8. Qg4 {[%emt 0:00:03]} g6 {[%emt 0:00:01]} 9. Qd1 {[%emt 0:00:02]} Nc6 {[%emt 0:00:04] C18: French: 3 Nc3 Bb4: Main line: 7 h4 and 7 Qg4.} 10. Nf3 {[%emt 0:00:01]} c4 {[%emt 0:00:02]} 11. h4 {[%emt 0:00:03]} h6 {[%emt 0:00:02] White is slightly better.} 12. Nh2 $5 {[%emt 0:00:09][%mdl 4] A promising side line.} Bd7 {[%emt 0:00:02] [#]} 13. Ng4 $146 {[%emt 0:00:01]} ({Predecessor:} 13. h5 g5 14. Ng4 O-O-O 15. f4 gxf4 16. Bxf4 Rf8 17. Be2 f6 18. exf6 Nxf6 19. Nxf6 Rxf6 {1-0 Beukema,S (2305)-Dgebuadze,A (2487) BEL-ch Charleroi 2014 (4)}) 13... O-O-O {[%emt 0:00:01]} 14. Be2 {[%emt 0:00:08]} Rf8 {[%emt 0:00:04]} 15. O-O {[%emt 0:00:35]} Qa5 {[%emt 0:00:20]} 16. g3 {[%emt 0:00:09]} Qd8 {[%emt 0:00:10]} 17. Qc1 {[%emt 0:00:13][%cal Rg4h6]} h5 {[%emt 0:00:03]} 18. Nh2 {[%emt 0:00:16][%cal Bg4h2,Bh2f3,Bf3g5][%mdl 32]} f6 {[%emt 0:00:01]} 19. exf6 {[%emt 0:00:04]} Nxf6 {[%emt 0:00:00]} 20. Nf3 {[%emt 0:00:17]} Ne4 {[%emt 0:00:04]} (20... Qa5 $5 {[%cal Rf6e4]}) 21. Ng5 {[%emt 0:00:02]} Nd6 {[%emt 0:01:29]} (21... Nxd2 $14 22. Qxd2 Qf6) 22. a4 {[%emt 0:00:29]} Qa5 {[%emt 0:00:06]} 23. Bf3 {[%emt 0:00:25]} Nf5 {[%emt 0:00:11]} ({Black should try} 23... Nf7 $14 24. Nxf7 Rxf7) 24. Re1 {[%emt 0:00:09]} Rf6 {[%emt 0:00:03]} 25. Bg2 {[%emt 0:00:07]} Re8 {[%emt 0:00:02]} 26. Rb1 {[%emt 0:00:14]} Qxa4 $2 {[%emt 0:00:56] [#] Black cannot hold the game after this.} (26... b6 $16 27. Nf3 Kb7) 27. Qb2 {[%emt 0:00:03]} Qa6 {[%emt 0:00:16]} (27... Nd8 {was called for.} 28. Nf3 Nd6) 28. Ra1 $18 {[%emt 0:00:05]} Na5 {[%emt 0:00:01]} 29. Bf4 {[%emt 0:00:15]} b6 {[%emt 0:00:02]} 30. Reb1 {[%emt 0:00:50]} Bc6 $2 {[%emt 0:00:27]} (30... Ne7 31. Bh3 Rxf4) 31. Qc1 {[%emt 0:00:25] White is clearly winning.} Re7 {[%emt 0:00:11]} 32. Qe1 {[%emt 0:00:05] [#] Hoping for Qe5.} Nxh4 {[%emt 0:00:35]} 33. Qe5 {[%emt 0:00:04] Intending Qb8+ and mate.} Rxf4 {[%emt 0:00:01]} 34. Qxf4 {[%emt 0:00:03]} Nxg2 {[%emt 0:00:06]} 35. Qd6 {[%emt 0:00:13]} Qb7 {[%emt 0:00:28]} 36. Rxa5 {[%emt 0:00:07][%mdl 64] Pin.   Weighted Error Value: White=0.32/Black=0.51} ({Weaker is} 36. Kxg2 Qc7 37. Qxc7+ Kxc7 $11) 1-0

[Event "CCT Airthings Masters Play-In 2023"]
[Site "Online"]
[Date "2023.02.03"]
[Round "3"]
[White "GHANDEEVAM"]
[Black "Beca95"]
[Result "1-0"]
[ECO "C41"]
[WhiteElo "2706"]
[BlackElo "2541"]
[Annotator "NA"]
[PlyCount "85"]
[EventDate "2023.02.03"]
[EventType "swiss"]
[EventCountry "NET"]
[SourceTitle "playchess.com"]
[Source "ChessBase"]
[SourceQuality "1"]
[TimeControl "600+2"]

1. d4 {[%emt 0:00:03]} Nf6 {[%emt 0:00:04]} 2. Nc3 {[%emt 0:00:01]} d6 {[%emt 0:00:05]} 3. e4 {[%emt 0:00:01]} e5 {[%emt 0:00:01]} 4. Nf3 {[%emt 0:00:02]} Nbd7 {[%emt 0:00:02]} 5. Bc4 {[%emt 0:00:01]} Be7 {[%emt 0:00:02]} 6. O-O {[%emt 0:00:01]} c6 {[%emt 0:00:03]} 7. a4 {[%emt 0:00:01]} h6 {[%emt 0:00:04]} 8. Re1 {[%emt 0:00:03]} Qc7 {[%emt 0:00:02]} 9. a5 {[%emt 0:00:15]} Rb8 {[%emt 0:00:35]} 10. d5 {[%emt 0:00:11]} b5 {[%emt 0:00:06]} 11. dxc6 {[%emt 0:00:08]} bxc4 {[%emt 0:00:02]} 12. cxd7+ {[%emt 0:00:01]} Bxd7 {[%emt 0:00:01]} 13. a6 {[%emt 0:00:17]} O-O {[%emt 0:00:04]} 14. Nh4 {[%emt 0:00:04]} Rfd8 {[%emt 0:00:07]} 15. Qf3 {[%emt 0:00:02]} Bg4 {[%emt 0:01:01]} 16. Qg3 {[%emt 0:00:21]} Kh7 {[%emt 0:00:02]} 17. Nd5 {[%emt 0:00:51]} Nxd5 {[%emt 0:00:03]} 18. Qxg4 {[%emt 0:00:00]} Nf6 {[%emt 0:01:39]} 19. Qe2 {[%emt 0:00:14]} g6 {[%emt 0:00:05]} 20. c3 {[%emt 0:00:10]} Qc6 {[%emt 0:00:06]} 21. Qe3 {[%emt 0:00:13]} Ng4 {[%emt 0:00:50]} 22. Qxa7 {[%emt 0:00:45]} Re8 {[%emt 0:00:02]} 23. Bd2 {[%emt 0:00:59]} Rxb2 {[%emt 0:01:12]} 24. Nf3 {[%emt 0:00:01]} Kg7 {[%emt 0:00:02]} 25. h3 {[%emt 0:00:07]} Bd8 {[%emt 0:00:27]} 26. hxg4 {[%emt 0:00:07]} Bb6 {[%emt 0:00:01]} 27. Qb7 {[%emt 0:00:11]} Bxf2+ {[%emt 0:00:02]} 28. Kxf2 {[%emt 0:00:00]} Rxb7 {[%emt 0:00:02]} 29. axb7 {[%emt 0:00:00]} Qxb7 {[%emt 0:00:00]} 30. Rab1 {[%emt 0:00:43]} Qd7 {[%emt 0:00:15]} 31. Kg3 {[%emt 0:00:24]} Ra8 {[%emt 0:00:06]} 32. Rh1 {[%emt 0:00:14]} g5 {[%emt 0:00:15]} 33. Rhd1 {[%emt 0:00:05]} Qc6 {[%emt 0:00:02]} 34. Re1 {[%emt 0:00:07]} Ra2 {[%emt 0:00:03]} 35. Rbd1 {[%emt 0:00:37]} f6 {[%emt 0:00:11]} 36. Bc1 {[%emt 0:00:32]} Rc2 {[%emt 0:00:13]} 37. Ba3 {[%emt 0:00:03]} Rxc3 {[%emt 0:00:08]} 38. Rxd6 {[%emt 0:00:04]} Qa8 {[%emt 0:00:07]} 39. Rd7+ {[%emt 0:00:15]} Kg6 {[%emt 0:00:08]} 40. Bb4 {[%emt 0:00:44]} Rb3 {[%emt 0:00:03]} 41. Red1 {[%emt 0:00:13]} Rxb4 {[%emt 0:00:45]} 42. Nxe5+ {[%emt 0:00:04]} fxe5 {[%emt 0:00:17]} 43. R1d6# {[%emt 0:00:00]} 1-0

[Event "CCT Airthings Masters Play-In 2023"]
[Site "Online"]
[Date "2023.02.03"]
[Round "3"]
[White "crescentmoon"]
[Black "Cueva Jumbo, Eduardo"]
[Result "1-0"]
[ECO "D35"]
[WhiteElo "2693"]
[BlackElo "1954"]
[Annotator "TA"]
[PlyCount "101"]
[EventDate "2023.02.03"]
[EventType "swiss"]
[EventCountry "NET"]
[SourceTitle "playchess.com"]
[Source "ChessBase"]
[SourceQuality "1"]
[TimeControl "600+2"]

{[%evp 14,101,25,25,25,32,41,39,47,30,34,32,32,28,31,15,27,10,27,26,30,25,25,29,95,10,13,18,16,8,16,8,25,16,1,14,84,22,25,26,31,25,28,24,29,28,61,43,66,53,53,29,33,31,60,18,23,18,23,23,72,44,46,46,46,34,31,31,46,37,84,85,85,54,277,260,240,225,284,248,304,260,640,639,584,381,838,853,848,871]} 1. d4 {[%emt 0:00:05]} e6 {[%emt 0:00:05]} 2. c4 {[%emt 0:00:02]} d5 {[%emt 0:00:03]} 3. Nc3 {[%emt 0:00:03]} Nf6 {[%emt 0:00:01]} 4. cxd5 {[%emt 0:00:06]} exd5 {[%emt 0:00:00]} 5. Bg5 {[%emt 0:00:05]} c6 {[%emt 0:00:01]} 6. e3 {[%emt 0:00:05]} Be7 {[%emt 0:00:02]} 7. Bd3 {[%emt 0:00:04]} h6 {[%emt 0:00:19]} 8. Bf4 {[%emt 0:00:12]} Bd6 {[%emt 0:00:25] D35: Queen's Gambit Declined: Exchange Variation.} 9. Nge2 {[%emt 0:00:48]} a5 {[%emt 0:00:14]} 10. O-O {[%emt 0:00:16]} O-O {[%emt 0:00:03] White is slightly better.} 11. Qc2 {[%emt 0:00:24]} Re8 {[%emt 0:00:05] [#]} 12. Rfe1 $146 {[%emt 0:00:10]} ({Predecessor:} 12. a3 Na6 13. Rab1 b5 14. Na2 Bxf4 15. Nxf4 Bd7 16. b4 Qe7 17. Qb2 Nc7 18. Bc2 Rec8 19. Nd3 {½-½ Suleymanli,A (2543)-Shahaliyev,I (2406) AZE-ch Rapid 2022 (7)}) 12... Na6 {[%emt 0:00:01][%cal Bb8a6,Ba6c7,Bc7e6][%mdl 32]} 13. a3 {[%emt 0:00:15] Prevents Nb4} Nc7 {[%emt 0:00:04]} 14. Rad1 {[%emt 0:00:15]} Ne6 {[%emt 0:00:47]} 15. Bg3 {[%emt 0:00:10]} Ng5 {[%emt 0:00:11]} 16. Bxd6 {[%emt 0:02:03]} Qxd6 {[%emt 0:00:04]} 17. Ng3 {[%emt 0:00:01]} Bg4 {[%emt 0:00:43]} 18. Rc1 {[%emt 0:00:18]} h5 {[%emt 0:00:10]} (18... Bd7 $11 {remains equal.}) 19. h4 {[%emt 0:00:11]} ({Better is} 19. f4 $16 Ngh7 20. h3) 19... Ne6 $11 {[%emt 0:00:32]} 20. Nf1 {[%emt 0:00:07] [#] Threatens to win with f3.} Nf8 {[%emt 0:00:59]} 21. f3 {[%emt 0:00:02]} Bd7 {[%emt 0:00:06]} 22. Qf2 {[%emt 0:00:02]} b6 {[%emt 0:00:50]} 23. Qg3 {[%emt 0:01:06]} Qxg3 {[%emt 0:00:05]} 24. Nxg3 {[%emt 0:00:03]} c5 {[%emt 0:00:02]} (24... g6 $11 {keeps the balance.}) 25. Bb5 {[%emt 0:00:33] White is more active.} (25. e4 $16) 25... Bxb5 {[%emt 0:01:39]} 26. Nxb5 {[%emt 0:00:03] And now Nc7 would win.} Ne6 {[%emt 0:00:01] Against Nc7} 27. Ne2 {[%emt 0:00:35]} Kf8 {[%emt 0:00:27]} 28. Kf2 {[%emt 0:00:02]} Re7 {[%emt 0:00:12]} 29. g3 {[%emt 0:00:18][%cal Bg2g3,Bg3f4][%mdl 32]} Rae8 {[%emt 0:00:18]} 30. Nf4 {[%emt 0:00:22]} Nxf4 {[%emt 0:00:16]} 31. gxf4 {[%emt 0:00:01]} c4 {[%emt 0:00:01]} 32. Nc3 {[%emt 0:00:22]} g6 {[%emt 0:00:09]} 33. Re2 {[%emt 0:00:05]} Rd8 {[%emt 0:00:11]} 34. Rd1 {[%emt 0:00:06]} (34. Rg1 $5) 34... Ne8 {[%emt 0:00:35]} 35. e4 {[%emt 0:00:01]} Nc7 {[%emt 0:00:00]} 36. a4 {[%emt 0:00:02]} Red7 {[%emt 0:00:17]} (36... f5 $11 {should be considered.}) 37. Red2 {[%emt 0:00:13]} Kg7 {[%emt 0:00:16]} 38. Ke3 {[%emt 0:00:04]} f5 {[%emt 0:00:15]} 39. Rg1 {[%emt 0:00:39]} Re7 {[%emt 0:00:20]} 40. e5 {[%emt 0:00:14]} Kf7 {[%emt 0:00:07]} 41. Rb1 {[%emt 0:00:09]} Na6 {[%emt 0:00:16]} (41... Re6 $14) 42. b3 $16 {[%emt 0:00:09]} cxb3 {[%emt 0:00:04]} 43. Rxb3 {[%emt 0:00:00]} Nb4 $2 {[%emt 0:00:01] Black cannot hold the game after this.} (43... Re6 $14) 44. Nb5 $18 {[%emt 0:00:01]} Re6 {[%emt 0:00:09] [#]} 45. Rc3 $1 {[%emt 0:00:02]} Rd7 {[%emt 0:00:00]} 46. Rd1 {[%emt 0:00:04]} Kg7 {[%emt 0:00:04]} 47. Rdc1 {[%emt 0:00:03] Rc8 would be deadly.} Kf7 $2 {[%emt 0:00:01]} (47... Rde7 48. Rc8 Na2) 48. Rc8 {[%emt 0:00:03]} Na2 {[%emt 0:00:04]} 49. R1c7 {[%emt 0:00:15]} Rxc7 {[%emt 0:00:01]} (49... Rde7 50. Rd8 Rxc7 51. Nxc7 Re7) 50. Nxc7 {[%emt 0:00:04]} Rc6 {[%emt 0:00:03]} 51. e6+ {[%emt 0:00:01] Weighted Error Value: White=0.11 (very precise) /Black=0.36} 1-0

[Event "CCT Airthings Masters Play-In 2023"]
[Site "Online"]
[Date "2023.02.03"]
[Round "3"]
[White "Sevian, Samuel"]
[Black "Shield12"]
[Result "1/2-1/2"]
[ECO "D02"]
[WhiteElo "2687"]
[BlackElo "2613"]
[Annotator "NA"]
[PlyCount "44"]
[EventDate "2023.02.03"]
[EventType "swiss"]
[EventCountry "NET"]
[SourceTitle "playchess.com"]
[Source "ChessBase"]
[SourceQuality "1"]
[TimeControl "600+2"]

1. d4 {[%emt 0:00:03]} Nf6 {[%emt 0:00:03]} 2. Nf3 {[%emt 0:00:01]} d5 {[%emt 0:00:02]} 3. Bf4 {[%emt 0:00:02]} c5 {[%emt 0:00:01]} 4. e3 {[%emt 0:00:00]} Nc6 {[%emt 0:00:01]} 5. dxc5 {[%emt 0:00:16]} e6 {[%emt 0:00:12]} 6. Nbd2 {[%emt 0:00:17]} Bxc5 {[%emt 0:00:02]} 7. Bd3 {[%emt 0:00:01]} Bd6 {[%emt 0:00:08]} 8. Bg5 {[%emt 0:00:06]} h6 {[%emt 0:00:03]} 9. Bh4 {[%emt 0:00:01]} e5 {[%emt 0:00:08]} 10. e4 {[%emt 0:00:15]} dxe4 {[%emt 0:00:40]} 11. Nxe4 {[%emt 0:00:17]} Be7 {[%emt 0:00:15]} 12. Bxf6 {[%emt 0:01:47]} Bxf6 {[%emt 0:00:00]} 13. O-O {[%emt 0:00:01]} Be7 {[%emt 0:00:06]} 14. Ng3 {[%emt 0:00:02]} O-O {[%emt 0:00:03]} 15. Re1 {[%emt 0:00:05]} Qc7 {[%emt 0:00:03]} 16. Qe2 {[%emt 0:00:31]} Bd6 {[%emt 0:00:19]} 17. Nf5 {[%emt 0:00:56]} Bxf5 {[%emt 0:00:42]} 18. Bxf5 {[%emt 0:00:00]} Rae8 {[%emt 0:00:01]} 19. Qc4 {[%emt 0:01:15]} Nd4 {[%emt 0:00:14]} 20. Qxc7 {[%emt 0:00:07]} Nxf3+ {[%emt 0:00:01]} 21. gxf3 {[%emt 0:00:00]} Bxc7 {[%emt 0:00:00]} 22. Rad1 {[%emt 0:00:10]} Rd8 {[%emt 0:00:03]} 1/2-1/2

[Event "CCT Airthings Masters Play-In 2023"]
[Site "Online"]
[Date "2023.02.03"]
[Round "3"]
[White "LiemLe"]
[Black "Perez Ponsa, Federico"]
[Result "1-0"]
[ECO "D00"]
[WhiteElo "2664"]
[BlackElo "2532"]
[Annotator "TA"]
[PlyCount "57"]
[EventDate "2023.02.03"]
[EventType "swiss"]
[EventCountry "NET"]
[SourceTitle "playchess.com"]
[Source "ChessBase"]
[SourceQuality "1"]
[TimeControl "600+2"]

{[%evp 9,57,-1,8,-33,-7,-13,0,-8,-1,2,0,-5,54,31,62,67,83,72,109,0,137,0,16,10,22,18,14,4,10,27,15,10,82,0,100,97,97,104,303,291,293,299,756,627,1580,1563,29984,29985,29992,29993]} 1. d4 {[%emt 0:00:08]} Nf6 {[%emt 0:00:05]} 2. Nf3 {[%emt 0:00:06]} g6 {[%emt 0:00:07]} 3. Nc3 {[%emt 0:00:02]} d5 {[%emt 0:00:03]} 4. Bf4 {[%emt 0:00:02]} Bg7 {[%emt 0:00:06]} 5. Nb5 {[%emt 0:00:05]} Na6 {[%emt 0:00:04]} 6. h3 {[%emt 0:00:03][%cal Bh2h3,Bh3h4][%mdl 32] D00: 1 d4 d5: Unusual lines.} O-O {[%emt 0:00:23]} 7. e3 {[%emt 0:00:01]} Ne4 {[%emt 0:00:24]} 8. Nd2 {[%emt 0:00:10] The position is equal.} Nxd2 {[%emt 0:00:33]} 9. Qxd2 {[%emt 0:00:00]} c6 {[%emt 0:00:38]} 10. Nc3 {[%emt 0:00:04] [#]} b6 $146 {[%emt 0:01:26]} ({Better is} 10... Nc7 $11) ({Predecessor:} 10... Re8 11. Bxa6 bxa6 12. O-O Qa5 13. a3 Bf5 14. b4 Qd8 15. Na4 e5 16. dxe5 Rxe5 17. Bxe5 Bxe5 {1-0 Nihal,S (2650)-Rapport,R (2763) Speed Chess Chess.com INT blitz 2021 (2.22)}) 11. h4 $14 {[%emt 0:00:07]} h5 {[%emt 0:00:04]} 12. O-O-O {[%emt 0:00:03][%cal Og2g4]} Nc7 {[%emt 0:00:57]} 13. Be2 {[%emt 0:00:27][%cal Og2g4]} Re8 {[%emt 0:00:35]} 14. e4 {[%emt 0:00:22] White has more active pieces. The black rooks are badly placed.} (14. Rdg1 $16) 14... b5 {[%emt 0:00:37]} (14... dxe4 $1 $11 {keeps the balance.} 15. Nxe4 Be6) 15. Bf3 {[%emt 0:00:36]} (15. e5 $16) 15... b4 $11 {[%emt 0:00:08]} 16. Na4 {[%emt 0:00:04]} dxe4 {[%emt 0:00:04]} 17. Bxe4 {[%emt 0:00:00]} Nd5 $1 {[%emt 0:00:01]} 18. Bh6 {[%emt 0:00:29]} Qa5 {[%emt 0:00:20]} 19. Bxg7 {[%emt 0:00:07]} Kxg7 {[%emt 0:00:03]} (19... Qxa4 {leads to mate.} 20. Qh6 f5 21. Bxd5+ e6 22. Bf6) 20. b3 {[%emt 0:00:04]} Ba6 {[%emt 0:00:29]} (20... Rb8 $11 {remains equal.}) 21. Kb2 {[%emt 0:00:11]} (21. g4 $16) 21... Bb5 {[%emt 0:00:09] [#]} (21... Rad8 $1 $11) 22. Bxd5 $1 $16 {[%emt 0:00:01]} cxd5 {[%emt 0:00:09] [#]} 23. Nc5 {[%emt 0:00:02]} Qa3+ $2 {[%emt 0:00:11] This move loses the game for Black.} (23... e5 $16) 24. Kb1 $18 {[%emt 0:00:05]} a5 {[%emt 0:00:00]} 25. Rh3 {[%emt 0:00:24]} ({Less strong is} 25. Qg5 a4 26. Rd2 (26. Qxd5 Bc6 $11) 26... axb3 27. cxb3 Qa5 $16) 25... Kh7 $2 {[%emt 0:00:36]} (25... Reb8 26. Qg5 a4) 26. Re1 {[%emt 0:00:15]} Rac8 {[%emt 0:00:13]} 27. Qf4 {[%emt 0:00:08]} Kg8 {[%emt 0:00:08]} 28. Rf3 {[%emt 0:00:04]} f6 {[%emt 0:00:23]} 29. Qh6 {[%emt 0:00:01] Weighted Error Value: White=0.28 (precise) /Black=0.63} 1-0